bitfinex-derivatives/quotes_SOLF0:USTF0_20260105
["timestamp","ask_amount","ask_price","bid_price","bid_amount"]
[1767608310897,0.31455893,135.8,135.73,0.34161538]
[1767608311804,6.94575893,135.8,135.73,0.34161538]
[1767608312111,0.31455893,135.79,135.73,0.34161538]
[1767608313199,0.31455893,135.81,135.74,0.34161538]
[1767608313708,0.31455893,135.8,135.74,0.34161538]
[1767608320903,6.94565893,135.8,135.74,0.34161538]
[1767608321907,0.31455893,135.78,135.72,6.97631538]
[1767608322113,0.31455893,135.78,135.72,0.34161538]
[1767608326918,6.6315,135.79,135.69,0.34161538]
[1767608326919,0.31455893,135.76,135.69,0.34161538]
[1767608327310,87.33455893,135.76,135.69,0.34161538]
[1767608328717,87.02,135.76,135.7,0.34161538]
[1767608328903,93.96735893,135.77,135.7,0.34161538]
[1767608329311,87.33455893,135.77,135.7,0.34161538]
[1767608330321,0.31455893,135.74,135.67,6.97861538]
[1767608330715,87.35455893,135.74,135.67,6.97861538]
[1767608330916,87.35455893,135.74,135.68,0.34161538]
[1767608331716,0.05473046,135.72,135.68,0.34161538]
[1767608338626,0.05473046,135.72,135.67,0.3136095]
[1767608341022,0.33528865,135.77,135.68,0.32530441]
[1767608341326,87.37528865,135.78,135.68,0.32530441]
[1767608341527,0.33528865,135.77,135.68,0.32530441]
[1767608341719,0.33528865,135.76,135.69,6.96160441]
[1767608343721,0.33528865,135.76,135.7,0.32530441]
[1767608349230,0.33528865,135.75,135.7,0.32530441]
[1767608350427,6.96868865,135.75,135.7,0.32530441]
[1767608351228,6.96818865,135.77,135.71,0.38096966]
[1767608351424,94.00818865,135.77,135.71,0.38096966]
[1767608351928,0.33528865,135.76,135.71,0.38096966]
[1767608356036,0.33528865,135.76,135.71,0.05566525]
[1767608356537,0.33528865,135.75,135.71,0.05566525]
[1767608358839,6.96878865,135.75,135.71,0.05566525]
[1767608360041,0.33528865,135.74,135.69,0.32530441]
[1767608360241,0.33528865,135.72,135.67,0.32530441]
[1767608360443,0.33528865,135.72,135.65,34.53707931]
[1767608361038,0.33528865,135.71,135.65,34.53707931]
[1767608361541,0.05167069,135.7,135.65,34.53707931]
[1767608363839,0.05167069,135.7,135.66,0.32530441]
[1767608366643,0.05167069,135.7,135.65,34.2117749]
[1767608366845,0.38695934,135.7,135.65,34.2117749]
[1767608367442,0.38695934,135.7,135.65,34.53707931]
[1767608369339,0.38695934,135.7,135.65,0.32530441]
[1767608371549,0.38695934,135.7,135.63,154.6198227]
[1767608371550,0.38695934,135.7,135.63,0.33487555]
[1767608371853,87.38347189,135.69,135.63,0.33487555]
[1767608376350,0.32347189,135.68,135.63,0.33487555]
[1767608377156,0.0546857,135.67,135.63,0.33487555]
[1767608380259,0.0546857,135.67,135.6,0.33487555]
[1767608380647,9.44830609,135.68,135.6,0.33487555]
[1767608381054,0.04950653,135.65,135.6,0.33487555]
[1767608381559,0.04950653,135.65,135.61,0.33487555]
[1767608388970,103.2136,135.72,135.61,0.33487555]
[1767608388971,6.96027189,135.69,135.61,0.33487555]
[1767608389167,103.2136,135.72,135.61,0.33487555]
[1767608389168,1.59511142,135.66,135.61,0.33487555]
[1767608391566,0.32347189,135.67,135.61,0.33487555]
[1767608391767,1.59511142,135.66,135.61,0.33487555]
[1767608393363,87.1,135.68,135.62,0.3116688]
[1767608393666,87.42839284,135.68,135.62,0.3116688]
[1767608393862,0.32839284,135.68,135.62,0.3116688]
[1767608394063,87.42839284,135.68,135.62,0.3116688]
[1767608394670,0.32839284,135.68,135.62,0.3116688]
[1767608394967,87.42839284,135.68,135.62,0.3116688]
[1767608397469,89.02350426,135.68,135.62,0.3116688]
[1767608399974,1.59511142,135.68,135.62,0.3116688]
[1767608400670,1.93183193,135.68,135.62,0.3116688]
[1767608405480,1.93183193,135.68,135.63,0.3276704]
[1767608405682,0.33672051,135.68,135.63,0.3276704]
[1767608413587,0.33672051,135.68,135.62,6.6396]
[1767608413787,1.59511142,135.67,135.62,6.6396]
[1767608414587,1.59511142,135.67,135.62,6.9672704]
[1767608419993,0.33672051,135.68,135.62,6.9672704]
[1767608420194,1.93183193,135.68,135.62,6.9672704]
[1767608422597,1.93183193,135.68,135.63,0.3276704]
[1767608423698,0.33672051,135.67,135.61,0.3276704]
[1767608424699,0.33672051,135.67,135.62,0.3276704]
[1767608427192,0.33672051,135.67,135.58,34.13492233]
[1767608427393,1.93183193,135.66,135.6,0.3276704]
[1767608427598,1.59511142,135.65,135.6,0.3276704]
[1767608430396,1.59511142,135.65,135.6,6.9683704]
[1767608430896,0.33672051,135.66,135.6,6.9683704]
[1767608433091,0.33672051,135.66,135.6,0.3276704]
[1767608433296,0.3267548,135.68,135.63,0.32185881]
[1767608433502,1.92186622,135.68,135.63,0.32185881]
[1767608436802,0.3267548,135.67,135.62,6.6398]
[1767608438307,0.3267548,135.65,135.6,6.6404]
[1767608438703,0.3267548,135.65,135.6,6.96225881]
[1767608447318,0.3267548,135.65,135.58,6.96335881]
[1767608447809,0.3267548,135.65,135.59,6.96305881]
[1767608450714,0.3267548,135.65,135.6,0.32185881]
[1767608453716,0.3267548,135.65,135.58,0.34065691]
[1767608453908,0.31279909,135.64,135.58,0.34065691]
[1767608454317,0.31279909,135.64,135.58,6.98235691]
[1767608454618,0.31279909,135.64,135.58,0.34065691]
[1767608455117,0.31279909,135.64,135.59,6.98185691]
[1767608455911,87.41279909,135.66,135.6,0.34065691]
[1767608456616,87.41279909,135.66,135.6,6.98135691]
[1767608457419,0.31279909,135.66,135.61,6.98085691]
[1767608462316,0.32828818,135.69,135.62,6.95997906]
[1767608462524,92.82686148,135.68,135.63,0.32027906]
[1767608462819,87.42828818,135.68,135.63,0.32027906]
[1767608464720,0.32828818,135.68,135.63,6.95947906]
[1767608464928,87.1,135.69,135.63,0.32027906]
[1767608465425,87.42828818,135.69,135.63,0.32027906]
[1767608466526,0.32828818,135.68,135.61,0.32027906]
[1767608467118,0.32828818,135.68,135.62,6.6398]
[1767608467315,0.32828818,135.68,135.62,6.96007906]
[1767608470025,0.32828818,135.65,135.58,0.32027906]
[1767608470327,0.32828818,135.64,135.58,0.32027906]
[1767608471530,0.32828818,135.64,135.58,6.96197906]
[1767608472030,0.32828818,135.64,135.59,0.32027906]
[1767608473133,87.42828818,135.65,135.59,0.32027906]
[1767608475538,2.8211144,135.69,135.6,0.32027906]
[1767608475834,93.17007007,135.68,135.6,0.32027906]
[1767608476032,87.42828818,135.68,135.6,0.32027906]
[1767608476234,87.44828818,135.68,135.6,0.32027906]
[1767608477540,87.44828818,135.68,135.61,6.6401]
[1767608477732,87.44828818,135.68,135.61,6.96037906]
[1767608480048,87.44828818,135.68,135.62,6.6396]
[1767608481844,0.32828818,135.67,135.62,6.6396]
[1767608485648,0.32828818,135.67,135.63,0.04994025]
[1767608489451,0.32828818,135.66,135.6,6.6404]
[1767608489649,0.37939759,135.66,135.6,6.6404]
[1767608490758,87.49939759,135.66,135.6,6.6404]
[1767608491058,0.3183855,135.65,135.6,6.6404]
[1767608491354,0.3183855,135.65,135.59,0.32027906]
[1767608493360,0.3183855,135.65,135.58,6.6415]
[1767608493658,0.3183855,135.65,135.58,6.97533527]
[1767608493861,0.3183855,135.64,135.58,6.97533527]
[1767608494260,0.05365318,135.63,135.58,6.97533527]
[1767608494458,87.12,135.65,135.6,0.33383527]
[1767608494856,0.3183855,135.66,135.6,0.33383527]
[1767608495163,87.4383855,135.66,135.6,0.33383527]
[1767608495462,0.3183855,135.65,135.6,0.33383527]
[1767608495866,87.4383855,135.65,135.6,0.33383527]
[1767608498472,87.4383855,135.65,135.61,0.05085465]
[1767608504475,89.03404827,135.65,135.61,0.05085465]
[1767608509879,0.3183855,135.64,135.61,0.05085465]
[1767608513781,87.12,135.65,135.61,0.05085465]
[1767608514181,0.33343554,135.68,135.61,0.3717429]
[1767608514391,92.87028491,135.67,135.61,0.3717429]
[1767608514586,87.12,135.67,135.61,0.32088825]
[1767608514993,89.04909831,135.68,135.61,0.32088825]
[1767608515684,89.04909831,135.68,135.62,6.96038825]
[1767608518992,87.45343554,135.68,135.62,6.96038825]
[1767608520593,0.31698349,135.67,135.62,0.32088825]
[1767608521694,87.12,135.68,135.63,0.31859391]
[1767608522491,0.31698349,135.69,135.64,0.31859391]
[1767608523595,0.31698349,135.69,135.64,6.95729391]
[1767608524290,0.31698349,135.69,135.65,0.05208196]
[1767608551220,87.41698349,135.69,135.65,0.05208196]
[1767608551912,87.43666169,135.71,135.65,0.37733889]
[1767608552113,0.33666169,135.7,135.65,0.37733889]
[1767608552716,87.43666169,135.7,135.65,0.37733889]
[1767608553608,0.05246032,135.69,135.65,0.37733889]
[1767608553813,309.3903,135.83,135.65,0.37733889]
[1767608553814,0.33666169,135.79,135.72,0.32525693]
[1767608554014,0.33666169,135.81,135.75,0.32525693]
[1767608554318,0.33666169,135.81,135.75,6.95855693]
[1767608554520,1.93232446,135.81,135.75,0.32525693]
[1767608554911,0.33666169,135.81,135.75,0.32525693]
[1767608555113,0.33666169,135.81,135.77,0.05267072]
[1767608555420,0.33666169,135.79,135.73,0.32525693]
[1767608556718,0.33666169,135.79,135.73,6.95955693]
[1767608557416,1.93232446,135.79,135.73,0.32525693]
[1767608561411,0.33666169,135.78,135.73,0.32525693]
[1767608564424,0.33666169,135.76,135.71,87.36525693]
[1767608564621,0.33666169,135.76,135.69,0.32525693]
[1767608564928,0.33666169,135.75,135.69,0.32525693]
[1767608565425,0.33666169,135.75,135.71,0.05035926]
[1767608566819,0.33666169,135.73,135.66,0.32525693]
[1767608568132,0.05293708,135.71,135.66,0.32525693]
[1767608568523,0.05293708,135.71,135.67,6.6372]
[1767608581047,0.05293708,135.71,135.67,6.96710384]
[1767608581240,0.33298587,135.77,135.69,0.32990384]
[1767608581645,0.33298587,135.77,135.7,0.32990384]
[1767608582545,0.33298587,135.77,135.72,0.05185339]
[1767608584748,0.33298587,135.76,135.72,0.05185339]
[1767608585838,0.33298587,135.75,135.7,0.32990384]
[1767608587250,0.0494857,135.74,135.7,0.32990384]
[1767608592260,0.38247157,135.74,135.68,0.32990384]
[1767608596660,7.01647157,135.74,135.68,0.32990384]
[1767608596862,0.33298587,135.73,135.66,0.32990384]
[1767608597460,0.04850408,135.71,135.66,0.32990384]
[1767608597964,0.04850408,135.71,135.66,6.96770384]
[1767608602562,0.04850408,135.71,135.67,0.32990384]
[1767608602766,6.96688587,135.75,135.68,0.32990384]
[1767608602960,87.06,135.76,135.68,0.32990384]
[1767608603161,87.06,135.76,135.69,0.32990384]
[1767608603568,87.39298587,135.76,135.69,0.32990384]
[1767608604567,94.02598587,135.76,135.69,6.96620384]
[1767608606467,6.96598587,135.76,135.69,6.96620384]
[1767608608460,0.33298587,135.75,135.69,6.96620384]
[1767608611373,0.33298587,135.75,135.7,0.31761728]
[1767608638791,0.33298587,135.75,135.69,6.6363]
[1767608639181,0.33298587,135.75,135.69,6.9772499]
[1767608648402,0.34179525,135.77,135.71,0.3321118]
[1767608648603,5.6406238,135.76,135.71,0.3321118]
[1767608648899,0.34179525,135.77,135.71,0.3321118]
[1767608649095,5.64061477,135.76,135.71,0.3321118]
[1767608649302,0.34179525,135.77,135.71,0.3321118]
[1767608649602,5.64067532,135.76,135.71,6.9673118]
[1767608649802,0.34179525,135.77,135.71,6.9673118]
[1767608650002,5.64067532,135.76,135.71,6.9673118]
[1767608650206,0.34179525,135.77,135.71,6.9673118]
[1767608650402,5.64073773,135.76,135.71,6.9673118]
[1767608650703,88.99475066,135.79,135.73,0.3321118]
[1767608650901,5.64041996,135.78,135.73,0.3321118]
[1767608651098,5.64041996,135.77,135.73,0.3321118]
[1767608651306,1.93475066,135.79,135.73,0.3321118]
[1767608651511,5.63982912,135.78,135.73,0.3321118]
[1767608651714,0.34179525,135.79,135.74,0.3321118]
[1767608651916,5.63944451,135.78,135.74,0.3321118]
[1767608652114,0.34179525,135.79,135.74,0.3321118]
[1767608656715,112.25566481,135.81,135.74,0.3321118]
[1767608657014,5.63664541,135.8,135.74,0.3321118]
[1767608657213,0.34179525,135.8,135.74,0.3321118]
[1767608659113,118.54436956,135.81,135.74,0.3321118]
[1767608659320,0.34179525,135.84,135.77,0.3321118]
[1767608666616,0.34179525,135.83,135.77,0.3321118]
[1767608668220,103.0913,135.88,135.79,0.3321118]
[1767608668221,6.96999525,135.86,135.79,0.3321118]
[1767608668425,0.34179525,135.84,135.79,0.3321118]
[1767608670618,1.59295541,135.83,135.79,0.3321118]
[1767608672623,0.34179525,135.84,135.79,0.3321118]
[1767608672823,1.59295541,135.83,135.79,0.3321118]
[1767608673020,1.91118528,135.83,135.77,6.6324]
[1767608673327,1.91118528,135.83,135.77,6.96990036]
[1767608673717,1.91118528,135.83,135.78,6.6318]
[1767608678120,1.91118528,135.83,135.78,6.96930036]
[1767608679927,1.59295541,135.84,135.79,6.96890036]
[1767608684836,1.91118528,135.83,135.77,6.96950036]
[1767608685334,0.31822987,135.82,135.77,6.96950036]
[1767608698055,0.31822987,135.82,135.72,118.96239741]
[1767608698056,0.31617964,135.81,135.75,6.97178734]
[1767608698747,0.31617964,135.81,135.76,0.33858734]
[1767608702957,87.32829094,135.83,135.77,0.33673128]
[1767608703251,5.62784453,135.82,135.77,0.33673128]
[1767608703456,87.32829094,135.83,135.77,0.33673128]
[1767608703659,5.63015865,135.82,135.77,0.33673128]
[1767608703854,87.32829094,135.83,135.77,0.33673128]
[1767608704554,87.32829094,135.83,135.77,6.96903128]
[1767608705354,5.63010632,135.82,135.77,6.96903128]
[1767608705559,87.32829094,135.83,135.77,6.96903128]
[1767608705763,5.63010632,135.82,135.77,6.96903128]
[1767608706059,87.32829094,135.83,135.77,6.96903128]
[1767608707465,5.63002261,135.82,135.77,6.96903128]
[1767608707772,87.32829094,135.83,135.77,6.96903128]
[1767608707971,5.63002261,135.82,135.77,6.96903128]
[1767608708173,87.32829094,135.83,135.77,6.96903128]
[1767608708472,87.34829094,135.82,135.77,6.96903128]
[1767608713781,233.25014164,135.84,135.78,0.33673128]
[1767608715583,233.25014164,135.84,135.79,6.6313]
[1767608716479,233.25014164,135.84,135.79,6.96803128]
[1767608717980,233.57843258,135.84,135.79,6.96803128]
[1767608723386,0.32829094,135.82,135.76,6.6325]
[1767608723691,0.32829094,135.81,135.76,6.6325]
[1767608724188,0.32829094,135.81,135.76,6.96923128]
[1767608724787,0.32829094,135.81,135.74,0.33673128]
[1767608724996,0.32829094,135.8,135.74,0.33673128]
[1767608725291,87.0,135.79,135.74,0.33673128]
[1767608725496,87.0,135.79,135.74,6.97053128]
[1767608727091,87.32829094,135.79,135.74,0.33673128]
[1767608729592,0.32829094,135.78,135.73,6.6341]
[1767608729787,87.34829094,135.78,135.73,6.6341]
[1767608734990,87.34829094,135.78,135.73,6.95686751]
[1767608737992,87.34829094,135.78,135.72,33.67582581]
[1767608737993,87.02,135.8,135.75,0.32276751]
[1767608738793,89.8264667,135.82,135.75,0.32276751]
[1767608739692,89.8264667,135.82,135.76,6.6329]
[1767608742301,0.31966929,135.81,135.76,6.6329]
[1767608743105,0.31966929,135.81,135.75,0.32276751]
[1767608743903,0.31966929,135.81,135.75,6.95616751]
[1767608744605,0.31966929,135.81,135.76,0.32276751]
[1767608744801,0.31966929,135.81,135.76,6.95566751]
[1767608745105,87.33966929,135.83,135.77,0.32276751]
[1767608746601,87.33966929,135.83,135.77,6.95506751]
[1767608747798,0.31966929,135.82,135.75,6.95606751]
[1767608748202,0.31966929,135.81,135.75,6.95606751]
[1767608748508,1.91162426,135.81,135.75,6.95606751]
[1767608751608,0.31966929,135.8,135.75,6.95606751]
[1767608751808,1.59195497,135.79,135.75,6.95606751]
[1767608752603,87.02,135.8,135.75,6.6333]
[1767608752799,1.90086969,135.79,135.75,6.6333]
[1767608753201,88.61195497,135.8,135.75,6.94615507]
[1767608756511,1.59195497,135.8,135.75,6.94615507]
[1767608760111,88.92086969,135.81,135.75,6.94615507]
[1767608765418,0.30891472,135.81,135.76,6.6329]
[1767608765619,88.92086969,135.81,135.76,6.6329]
[1767608767819,1.90086969,135.81,135.76,6.6329]
[1767608768021,88.92086969,135.81,135.76,6.6329]
[1767608768422,0.30838719,135.8,135.76,6.6329]
[1767608769224,0.30838719,135.78,135.73,0.33661456]
[1767608769424,0.30838719,135.78,135.72,33.67582581]
[1767608769622,87.32838719,135.78,135.72,34.01244037]
[1767608769917,0.30838719,135.78,135.73,6.6343]
[1767608770127,87.32838719,135.78,135.73,6.6343]
[1767608770324,87.32838719,135.78,135.74,6.6338]
[1767608770716,87.32838719,135.78,135.72,34.01244037]
[1767608770912,0.30838719,135.77,135.72,34.01244037]
[1767608771519,0.30838719,135.77,135.72,40.64704037]
[1767608773116,87.02,135.78,135.73,6.6343]
[1767608773317,87.02,135.78,135.73,6.97091456]
[1767608773621,233.25014164,135.84,135.75,6.96991456]
[1767608773819,87.02,135.81,135.75,6.96991456]
[1767608775113,87.32838719,135.81,135.75,6.96991456]
[1767608777227,0.30838719,135.8,135.75,6.96991456]
[1767608777626,0.30838719,135.79,135.75,6.6333]
[1767608778030,0.30838719,135.79,135.73,6.97061456]
[1767608778834,0.30838719,135.79,135.74,6.6338]
[1767608779429,0.30838719,135.79,135.74,6.97041456]
[1767608783226,0.30838719,135.77,135.72,40.64694037]
[1767608786633,1.90034216,135.76,135.71,160.05365737]
[1767608789438,0.30838719,135.75,135.7,0.33661456]
[1767608789626,1.59195497,135.74,135.7,0.33661456]
[1767608790432,0.30838719,135.73,135.67,0.33661456]
[1767608791323,0.30838719,135.73,135.68,6.96870561]
[1767608791931,1.59195497,135.74,135.68,6.96870561]
[1767608796539,0.32986249,135.75,135.69,0.33200561]
[1767608796744,0.32986249,135.75,135.69,6.96830561]
[1767608796946,1.92181746,135.75,135.69,6.96830561]
[1767608802043,0.32986249,135.77,135.71,0.33200561]
[1767608802246,1.92181746,135.77,135.71,0.33200561]
[1767608802548,0.32986249,135.76,135.71,0.33200561]
[1767608811658,6.96286249,135.76,135.71,0.33200561]
[1767608817660,0.33277348,135.75,135.69,6.94801272]
[1767608818060,0.33277348,135.75,135.7,0.31171272]
[1767608820565,0.33277348,135.75,135.7,6.94751272]
[1767608826466,0.33140032,135.79,135.72,0.33260547]
[1767608826668,5.63240042,135.78,135.72,0.33260547]
[1767608826862,0.33140032,135.79,135.72,0.33260547]
[1767608827067,5.63239436,135.78,135.72,0.33260547]
[1767608827268,0.33140032,135.79,135.72,0.33260547]
[1767608827466,0.33140032,135.79,135.69,103.2284]
[1767608827467,5.63534202,135.78,135.73,6.96690547]
[1767608827669,0.33140032,135.79,135.73,6.96690547]
[1767608827969,5.63534202,135.78,135.73,6.96690547]
[1767608828172,6.96290032,135.79,135.73,0.33260547]
[1767608828355,5.63697256,135.78,135.73,0.33260547]
[1767608828555,6.96290032,135.79,135.73,0.33260547]
[1767608828769,5.63697256,135.78,135.73,0.33260547]
[1767608828971,6.96290032,135.79,135.73,0.33260547]
[1767608829162,5.63697256,135.78,135.73,0.33260547]
[1767608829365,6.96290032,135.79,135.73,0.33260547]
[1767608829564,5.6383779,135.78,135.73,0.33260547]
[1767608829770,6.96290032,135.79,135.73,0.33260547]
[1767608829964,5.6383779,135.78,135.73,0.33260547]
[1767608830166,6.96290032,135.79,135.73,0.33260547]
[1767608830366,5.6386001,135.78,135.73,0.33260547]
[1767608830570,6.96290032,135.79,135.73,0.33260547]
[1767608830872,5.63860181,135.78,135.73,0.33260547]
[1767608831068,6.96290032,135.79,135.73,0.33260547]
[1767608831372,5.63860181,135.78,135.73,0.33260547]
[1767608831574,6.96290032,135.79,135.73,0.33260547]
[1767608831772,5.63882911,135.78,135.74,0.33260547]
[1767608832071,0.33140032,135.79,135.74,0.33260547]
[1767608833570,0.33140032,135.79,135.74,6.96650547]
[1767608834074,0.33140032,135.79,135.75,6.6333]
[1767608834275,87.06,135.8,135.75,6.6333]
[1767608834577,87.06,135.8,135.75,6.96590547]
[1767608835073,87.39140032,135.8,135.75,6.96590547]
[1767608835781,87.39140032,135.8,135.75,0.33260547]
[1767608836280,0.33140032,135.79,135.73,6.96660547]
[1767608838879,0.33140032,135.79,135.74,0.33260547]
[1767608854093,87.04,135.8,135.74,6.96630547]
[1767608854386,0.31076625,135.82,135.75,0.34112501]
[1767608854688,0.31076625,135.82,135.72,103.2065]
[1767608854689,0.31076625,135.82,135.77,0.34112501]
[1767608855387,9.11775002,135.85,135.77,0.34112501]
[1767608855577,0.31076625,135.85,135.78,0.34112501]
[1767608856587,0.31076625,135.85,135.78,6.97292501]
[1767608857398,0.31076625,135.85,135.79,0.34112501]
[1767608857793,23.14945021,135.87,135.8,0.34112501]
[1767608857986,110.16945021,135.87,135.8,0.34112501]
[1767608858287,23.14945021,135.87,135.8,0.34112501]
[1767608858492,110.16945021,135.87,135.8,0.34112501]
[1767608859191,6.93896625,135.86,135.8,0.34112501]
[1767608860487,0.31076625,135.85,135.77,6.97322501]
[1767608860889,0.31076625,135.84,135.77,6.97322501]
[1767608862092,0.31076625,135.84,135.78,0.34112501]
[1767608862992,0.31076625,135.83,135.76,0.34112501]
[1767608863587,0.31076625,135.82,135.76,0.34112501]
[1767608866494,0.31076625,135.81,135.76,0.34112501]
[1767608866895,0.31076625,135.81,135.72,0.34112501]
[1767608867695,0.31076625,135.81,135.74,6.97492501]
[1767608868700,0.31076625,135.8,135.74,6.97492501]
[1767608869195,0.31076625,135.8,135.75,0.34112501]
[1767608870592,1.90291195,135.8,135.75,0.34112501]
[1767608877208,0.31076625,135.8,135.75,0.34112501]
[1767608877505,1.90291195,135.8,135.75,0.34112501]
[1767608880605,1.5921457,135.78,135.73,0.3093781]
[1767608881308,1.5921457,135.78,135.73,6.9436781]
[1767608882005,1.90698582,135.78,135.73,0.3093781]
[1767608882213,1.5921457,135.74,135.68,0.34054064]
[1767608883608,1.5921457,135.74,135.69,6.97664064]
[1767608888317,0.31484012,135.75,135.7,6.6358]
[1767608888520,0.31484012,135.77,135.71,0.34054064]
[1767608888721,1.5921457,135.78,135.71,0.34054064]
[1767608889723,1.5921457,135.78,135.72,6.97524064]
[1767608891926,1.90698582,135.78,135.72,6.97524064]
[1767608894226,0.31484012,135.8,135.74,0.34054064]
[1767608894427,1.90698582,135.8,135.74,0.34054064]
[1767608895228,0.31484012,135.79,135.74,0.34054064]
[1767608895425,1.5921457,135.78,135.72,6.97494064]
[1767608895833,1.5921457,135.78,135.73,0.34054064]
[1767608897230,1.5921457,135.78,135.73,6.97494064]
[1767608897925,0.31484012,135.77,135.73,6.6344]
[1767608898225,0.31484012,135.77,135.71,6.97544064]
[1767608900432,0.31484012,135.75,135.69,6.97674064]
[1767608901035,0.31484012,135.75,135.7,6.6358]
[1767608902732,0.31484012,135.75,135.7,6.97634064]
[1767608904339,0.31484012,135.75,135.7,0.34054064]
[1767608904541,0.31484012,135.75,135.68,6.97694064]
[1767608904839,0.31484012,135.75,135.69,6.97684064]
[1767608912543,1.5921457,135.76,135.72,0.31536656]
[1767608913449,1.91735309,135.78,135.72,6.95026656]
[1767608914442,6.6308,135.81,135.74,0.31536656]
[1767608914637,8.2229457,135.81,135.74,0.31536656]
[1767608914851,8.54815309,135.81,135.74,0.31536656]
[1767608915656,0.32520739,135.8,135.74,6.94916656]
[1767608917246,0.32520739,135.79,135.72,6.94976656]
[1767608917453,0.32520739,135.78,135.72,6.94976656]
[1767608918051,0.32520739,135.8,135.73,6.94966656]
[1767608918854,0.32520739,135.8,135.74,6.6335]
[1767608919759,6.95620739,135.8,135.73,0.31536656]
[1767608920359,6.95620739,135.8,135.75,0.05055156]
[1767608920857,6.95670739,135.79,135.75,0.05055156]
[1767608923261,0.32520739,135.78,135.75,0.05055156]
[1767608924564,0.32520739,135.78,135.72,6.94976656]
[1767608924762,0.32520739,135.77,135.7,8.54291226]
[1767608924958,0.32520739,135.77,135.7,6.95076656]
[1767608925154,1.91735309,135.76,135.7,6.95076656]
[1767608925964,0.04843305,135.74,135.7,6.95076656]
[1767608926361,0.04843305,135.74,135.7,0.31536656]
[1767608928466,0.04843305,135.74,135.68,0.31536656]
[1767608929168,0.37364044,135.74,135.68,0.31536656]
[1767608929558,7.00764044,135.74,135.68,0.31536656]
[1767608930469,0.37364044,135.74,135.68,0.31536656]
[1767608931779,0.04843305,135.74,135.71,0.31536656]
[1767608933167,0.31035171,135.81,135.71,0.31536656]
[1767608933367,0.31035171,135.79,135.72,0.34014745]
[1767608934672,6.94235171,135.78,135.72,0.34014745]
[1767608935064,0.31035171,135.77,135.72,0.34014745]
[1767608940481,6.94235171,135.78,135.72,0.34014745]
[1767608940674,0.31035171,135.78,135.72,0.34014745]
[1767608940877,0.31035171,135.78,135.72,6.97494745]
[1767608941776,0.31035171,135.78,135.73,0.32754993]
[1767608944174,0.31035171,135.78,135.7,6.96294993]
[1767608944376,0.31004099,135.77,135.71,0.32754993]
[1767608947186,0.31004099,135.77,135.72,0.32754993]
[1767608947383,6.6321,135.78,135.72,0.32754993]
[1767608948789,6.94214099,135.78,135.72,0.32754993]
[1767608954692,6.94214099,135.78,135.72,6.96244993]
[1767608955392,0.31004099,135.78,135.73,0.32754993]
[1767608971105,6.94204099,135.78,135.73,0.32754993]
[1767608977412,0.31114113,135.76,135.69,6.95520248]
[1767608978607,0.31114113,135.75,135.69,6.95520248]
[1767608981115,0.31114113,135.75,135.69,0.31930248]
[1767608981506,6.94474113,135.75,135.69,0.31930248]
[1767608987206,0.31114113,135.74,135.69,0.31930248]
[1767608987407,0.31114113,135.73,135.65,0.31930248]
[1767608987604,0.31114113,135.72,135.65,0.31930248]
[1767608988214,0.31114113,135.72,135.65,6.95760248]
[1767608988215,0.31114113,135.71,135.65,6.95760248]
[1767608992610,1.90540254,135.71,135.65,6.95760248]
[1767608997122,8.54080254,135.71,135.65,0.31930248]
[1767608997523,0.33277629,135.7,135.65,0.31930248]
[1767608997723,6.96867629,135.7,135.65,0.31930248]
[1767608998119,8.5629377,135.7,135.65,0.31930248]
[1767609001124,1.92179645,135.68,135.63,0.33335045]
[1767609001637,8.55869645,135.68,135.63,0.33335045]
[1767609003224,1.59426141,135.66,135.6,0.33335045]
[1767609003521,1.92179645,135.66,135.6,0.33335045]
[1767609004425,1.92179645,135.66,135.62,0.04669355]
[1767609005126,6.6368,135.69,135.62,0.380044]
[1767609005631,6.96433504,135.69,135.62,0.380044]
[1767609006622,8.55859645,135.69,135.62,7.019644]
[1767609008334,94.04313504,135.71,135.64,0.33335045]
[1767609008630,1.92179645,135.7,135.64,0.33335045]
[1767609011820,1.92179645,135.7,135.64,6.97205045]
[1767609012331,0.32753504,135.69,135.62,0.33335045]
[1767609012530,1.92179645,135.68,135.62,0.33335045]
[1767609013524,1.92179645,135.68,135.62,6.97265045]
[1767609016224,1.92179645,135.7,135.63,0.33335045]
[1767609016428,0.32753504,135.69,135.63,0.33335045]
[1767609016732,87.1,135.71,135.64,0.33335045]
[1767609016733,1.92179645,135.71,135.64,0.33335045]
[1767609016932,6.6359,135.7,135.64,0.33335045]
[1767609017332,1.92179645,135.71,135.64,6.97205045]
[1767609017633,8.55719645,135.71,135.64,6.97205045]
[1767609022638,0.32753504,135.69,135.64,0.33335045]
[1767609024047,1.59426141,135.71,135.64,0.33335045]
[1767609024048,0.32753504,135.71,135.64,0.33335045]
[1767609025247,0.32753504,135.69,135.62,0.33335045]
[1767609025438,1.59426141,135.68,135.62,0.33335045]
[1767609025946,1.92179645,135.68,135.62,0.33335045]
[1767609026654,8.55869645,135.68,135.62,0.33335045]
[1767609032048,6.6369,135.68,135.62,0.33335045]
[1767609032542,6.96054431,135.68,135.62,0.33335045]
[1767609034953,0.32364431,135.68,135.62,0.33335045]